Workbook

Sheet INDEX CALCULATOR
C4: Please enter health state description:
C6: Mobility | E6: 3
C8: Self-care | E8: 3
C10: Usual activities | E10: 3
C12: Pain/Discomfort | E12: 3
C14: Anxiety/Discomfort | E14: 3
C17: Select country/survey of interest: | F17: New Zealand | P17: Belgium
P18: Denmark
C19: TTO Score | F19: VAS Score | P19: Finland
P20: Germany
A21: =F17 -> New Zealand | C21: =VLOOKUP(F17,Table,3,FALSE) -> Not available | F21: =VLOOKUP(F17,Table,6,FALSE) -> -0.0848 | P21: Japan
P22: Netherlands
P23: New Zealand
C24: Results for all countries/surveys: | P24: Slovenia
P25: Spain
C26: TTO Score | F26: VAS Score | P26: UK
P27: USA
A28: Belgium | C28: =TTO!J27 -> Not available | F28: =VAS!B22 -> -0.158 | P28: Zimbabwe
P29: Europe
A30: Denmark | C30: =TTO!B27 -> -0.624 | F30: =VAS!C22 -> -0.167
A32: Finland | C32: =TTO!K27 -> Not available | F32: =VAS!E22 -> -0.011
A34: Germany | C34: =TTO!C27 -> -0.207 | F34: =VAS!F22 -> 0.02069955934
A36: Japan | C36: =TTO!D27 -> -0.111 | F36: =VAS!K22 -> Not available
A38: Netherlands | C38: =TTO!E27 -> -0.329 | F38: =VAS!L22 -> Not available
A40: New Zealand | C40: =TTO!L27 -> Not available | F40: =VAS!G22 -> -0.0848
A42: Slovenia | C42: =TTO!M27 -> Not available | F42: =VAS!H22 -> -0.242
A44: Spain | C44: =TTO!F27 -> -0.654 | F44: =VAS!I22 -> -0.0757
A46: UK | C46: =TTO!G27 -> -0.594 | F46: =VAS!J22 -> -0.073
A48: USA | C48: =TTO!H27 -> -0.1090707 | F48: =VAS!M22 -> Not available
A50: Zimbabwe | C50: =TTO!I27 -> -0.145 | F50: =VAS!N22 -> Not available
A52: Europe | C52: =TTO!N27 -> Not available | F52: =VAS!D22 -> -0.0742

Sheet VAS
A1: VAS value sets | B1: Belgium | C1: Denmark | D1: Europe | E1: Finland | F1: Germany | G1: New Zealand | H1: Slovenia | I1: Spain | J1: UK | K1: Japan | L1: Netherlands | M1: USA | N1: Zimbabwe
A2: Full health (11111) | B2: 1 | C2: 1 | D2: 1 | E2: 1 | F2: 1 | G2: 1 | H2: 1 | I2: 1 | J2: 1
A4: At least one 2 or 3 (constant) | B4: -0.152 | C4: -0.225 | D4: -0.1279 | E4: -0.158 | F4: 0.9256 | G4: -0.2041 | H4: -0.128 | I4: -0.1502 | J4: -0.155
A5: At least one 3 (N3) | B5: -0.256 | C5: - | D5: -0.2288 | E5: - | F5: - | G5: -0.2165 | H5: - | I5: -0.2119 | J5: -0.215
A7: Mobility = 2 | B7: -0.074 | C7: -0.126 | D7: -0.0659 | E7: -0.058 | F7: 0.9447 | G7: -0.0753 | H7: -0.206 | I7: -0.0897 | J7: -0.071
A8: Mobility = 3 | B8: -0.148 | C8: -0.252 | D8: -0.1829 | E8: -0.23 | F8: 0.3927 | G8: -0.1506 | H8: -0.412 | I8: -0.1794 | J8: -0.182
A10: Self care = 2 | B10: -0.083 | C10: -0.112 | D10: -0.1173 | E10: -0.098 | F10: 0.808 | G10: -0.0714 | H10: -0.093 | I10: -0.1012 | J10: -0.093
A11: Self care = 3 | B11: -0.166 | C11: -0.224 | D11: -0.1559 | E11: -0.143 | F11: 0.4702 | G11: -0.1428 | H11: -0.186 | I11: -0.2024 | J11: -0.145
A13: Usual activities = 2 | B13: -0.031 | C13: -0.064 | D13: -0.0264 | E13: -0.047 | F13: 0.8803 | G13: -0.0136 | H13: -0.054 | I13: -0.0551 | J13: -0.031
A14: Usual activities = 3 | B14: -0.062 | C14: -0.128 | D14: -0.086 | E14: -0.131 | F14: 0.5538 | G14: -0.0272 | H14: -0.108 | I14: -0.1102 | J14: -0.081
A16: Pain/discomfort = 2 | B16: -0.084 | C16: -0.078 | D16: -0.093 | E16: -0.111 | F16: 0.9745 | G16: -0.0798 | H16: -0.111 | I16: -0.0596 | J16: -0.084
A17: Pain/discomfort = 3 | B17: -0.168 | C17: -0.156 | D17: -0.1637 | E17: -0.153 | F17: 0.4671 | G17: -0.1596 | H17: -0.222 | I17: -0.1192 | J17: -0.171
A19: Anxiety/depression = 2 | B19: -0.103 | C19: -0.091 | D19: -0.0891 | E19: -0.16 | F19: 0.8174 | G19: -0.092 | H19: -0.093 | I19: -0.0512 | J19: -0.063
A20: Anxiety/depression = 3 | B20: -0.206 | C20: -0.182 | D20: -0.129 | E20: -0.196 | F20: 0.4682 | G20: -0.184 | H20: -0.186 | I20: -0.1024 | J20: -0.124
F21: multiplicative
B22: =VAS!B2+(IF('INDEX CALCULATOR'!$E$6+'INDEX CALCULATOR'!$E$8+'INDEX CALCULATOR'!$E$10+'INDEX CALCULATOR'!$E$12+'INDEX CALCULATOR'!$E$14>5,1,0)*VAS!B4)+(IF('INDEX CALCULATOR'!$E$6=3,1,IF('INDEX CALCULATOR'!$E$8=3,1,IF('INDEX CALCULATOR'!$E$10=3,1,IF('INDEX CALCULATOR'!$E$12=3,1,IF('INDEX CALCULATOR'!$E$14=3,1,0)))))*VAS!B5)+(IF('INDEX CALCULATOR'!$E$6=2,1,0)*VAS!B7)+(IF('INDEX CALCULATOR'!$E$6=3,1,0)*VAS!B8)+(IF('INDEX CALCULATOR'!$E$8=2,1,0)*VAS!B10)+(IF('INDEX CALCULATOR'!$E$8=3,1,0)*VAS!B11)+(IF('INDEX CALCULATOR'!$E$10=2,1,0)*VAS!B13)+(IF('INDEX CALCULATOR'!$E$10=3,1,0)*VAS!B14)+(IF('INDEX CALCULATOR'!$E$12=2,1,0)*VAS!B16)+(IF('INDEX CALCULATOR'!$E$12=3,1,0)*VAS!B17)+(IF('INDEX CALCULATOR'!$E$14=2,1,0)*VAS!B19)+(IF('INDEX CALCULATOR'!$E$14=3,1,0)*VAS!B20) -> -0.158 | C22: =VAS!C2+(IF('INDEX CALCULATOR'!$E$6+'INDEX CALCULATOR'!$E$8+'INDEX CALCULATOR'!$E$10+'INDEX CALCULATOR'!$E$12+'INDEX CALCULATOR'!$E$14>5,1,0)*VAS!C4)+(IF('INDEX CALCULATOR'!$E$6=2,1,0)*VAS!C7)+(IF('INDEX CALCULATOR'!$E$6=3,1,0)*VAS!C8)+(IF('INDEX CALCULATOR'!$E$8=2,1,0)*VAS!C10)+(IF('INDEX CALCULATOR'!$E$8=3,1,0)*VAS!C11)+(IF('INDEX CALCULATOR'!$E$10=2,1,0)*VAS!C13)+(IF('INDEX CALCULATOR'!$E$10=3,1,0)*VAS!C14)+(IF('INDEX CALCULATOR'!$E$12=2,1,0)*VAS!C16)+(IF('INDEX CALCULATOR'!$E$12=3,1,0)*VAS!C17)+(IF('INDEX CALCULATOR'!$E$14=2,1,0)*VAS!C19)+(IF('INDEX CALCULATOR'!$E$14=3,1,0)*VAS!C20) -> -0.167 | D22: =VAS!D2+(IF('INDEX CALCULATOR'!$E$6+'INDEX CALCULATOR'!$E$8+'INDEX CALCULATOR'!$E$10+'INDEX CALCULATOR'!$E$12+'INDEX CALCULATOR'!$E$14>5,1,0)*VAS!D4)+(IF('INDEX CALCULATOR'!$E$6=3,1,IF('INDEX CALCULATOR'!$E$8=3,1,IF('INDEX CALCULATOR'!$E$10=3,1,IF('INDEX CALCULATOR'!$E$12=3,1,IF('INDEX CALCULATOR'!$E$14=3,1,0)))))*VAS!D5)+(IF('INDEX CALCULATOR'!$E$6=2,1,0)*VAS!D7)+(IF('INDEX CALCULATOR'!$E$6=3,1,0)*VAS!D8)+(IF('INDEX CALCULATOR'!$E$8=2,1,0)*VAS!D10)+(IF('INDEX CALCULATOR'!$E$8=3,1,0)*VAS!D11)+(IF('INDEX CALCULATOR'!$E$10=2,1,0)*VAS!D13)+(IF('INDEX CALCULATOR'!$E$10=3,1,0)*VAS!D14)+(IF('INDEX CALCULATOR'!$E$12=2,1,0)*VAS!D16)+(IF('INDEX CALCULATOR'!$E$12=3,1,0)*VAS!D17)+(IF('INDEX CALCULATOR'!$E$14=2,1,0)*VAS!D19)+(IF('INDEX CALCULATOR'!$E$14=3,1,0)*VAS!D20) -> -0.0742 | E22: =VAS!E2+(IF('INDEX CALCULATOR'!$E$6+'INDEX CALCULATOR'!$E$8+'INDEX CALCULATOR'!$E$10+'INDEX CALCULATOR'!$E$12+'INDEX CALCULATOR'!$E$14>5,1,0)*VAS!E4)+(IF('INDEX CALCULATOR'!$E$6=2,1,0)*VAS!E7)+(IF('INDEX CALCULATOR'!$E$6=3,1,0)*VAS!E8)+(IF('INDEX CALCULATOR'!$E$8=2,1,0)*VAS!E10)+(IF('INDEX CALCULATOR'!$E$8=3,1,0)*VAS!E11)+(IF('INDEX CALCULATOR'!$E$10=2,1,0)*VAS!E13)+(IF('INDEX CALCULATOR'!$E$10=3,1,0)*VAS!E14)+(IF('INDEX CALCULATOR'!$E$12=2,1,0)*VAS!E16)+(IF('INDEX CALCULATOR'!$E$12=3,1,0)*VAS!E17)+(IF('INDEX CALCULATOR'!$E$14=2,1,0)*VAS!E19)+(IF('INDEX CALCULATOR'!$E$14=3,1,0)*VAS!E20) -> -0.011 | F22: =VAS!F2*(IF('INDEX CALCULATOR'!$E$6+'INDEX CALCULATOR'!$E$8+'INDEX CALCULATOR'!$E$10+'INDEX CALCULATOR'!$E$12+'INDEX CALCULATOR'!$E$14>5,F4,1))*(IF('INDEX CALCULATOR'!$E$6=2,F7,1))*(IF('INDEX CALCULATOR'!$E$6=3,F8,1))*(IF('INDEX CALCULATOR'!$E$8=2,F10,1))*(IF('INDEX CALCULATOR'!$E$8=3,F11,1))*(IF('INDEX CALCULATOR'!$E$10=2,F13,1))*(IF('INDEX CALCULATOR'!$E$10=3,F14,1))*(IF('INDEX CALCULATOR'!$E$12=2,F16,1))*(IF('INDEX CALCULATOR'!$E$12=3,F17,1))*(IF('INDEX CALCULATOR'!$E$14=2,F19,1))*(IF('INDEX CALCULATOR'!$E$14=3,F20,1)) -> 0.02069955934 | G22: =VAS!G2+(IF('INDEX CALCULATOR'!$E$6+'INDEX CALCULATOR'!$E$8+'INDEX CALCULATOR'!$E$10+'INDEX CALCULATOR'!$E$12+'INDEX CALCULATOR'!$E$14>5,1,0)*VAS!G4)+(IF('INDEX CALCULATOR'!$E$6=3,1,IF('INDEX CALCULATOR'!$E$8=3,1,IF('INDEX CALCULATOR'!$E$10=3,1,IF('INDEX CALCULATOR'!$E$12=3,1,IF('INDEX CALCULATOR'!$E$14=3,1,0)))))*VAS!G5)+(IF('INDEX CALCULATOR'!$E$6=2,1,0)*VAS!G7)+(IF('INDEX CALCULATOR'!$E$6=3,1,0)*VAS!G8)+(IF('INDEX CALCULATOR'!$E$8=2,1,0)*VAS!G10)+(IF('INDEX CALCULATOR'!$E$8=3,1,0)*VAS!G11)+(IF('INDEX CALCULATOR'!$E$10=2,1,0)*VAS!G13)+(IF('INDEX CALCULATOR'!$E$10=3,1,0)*VAS!G14)+(IF('INDEX CALCULATOR'!$E$12=2,1,0)*VAS!G16)+(IF('INDEX CALCULATOR'!$E$12=3,1,0)*VAS!G17)+(IF('INDEX CALCULATOR'!$E$14=2,1,0)*VAS!G19)+(IF('INDEX CALCULATOR'!$E$14=3,1,0)*VAS!G20) -> -0.0848 | H22: =VAS!H2+(IF('INDEX CALCULATOR'!$E$6+'INDEX CALCULATOR'!$E$8+'INDEX CALCULATOR'!$E$10+'INDEX CALCULATOR'!$E$12+'INDEX CALCULATOR'!$E$14>5,1,0)*VAS!H4)+(IF('INDEX CALCULATOR'!$E$6=2,1,0)*VAS!H7)+(IF('INDEX CALCULATOR'!$E$6=3,1,0)*VAS!H8)+(IF('INDEX CALCULATOR'!$E$8=2,1,0)*VAS!H10)+(IF('INDEX CALCULATOR'!$E$8=3,1,0)*VAS!H11)+(IF('INDEX CALCULATOR'!$E$10=2,1,0)*VAS!H13)+(IF('INDEX CALCULATOR'!$E$10=3,1,0)*VAS!H14)+(IF('INDEX CALCULATOR'!$E$12=2,1,0)*VAS!H16)+(IF('INDEX CALCULATOR'!$E$12=3,1,0)*VAS!H17)+(IF('INDEX CALCULATOR'!$E$14=2,1,0)*VAS!H19)+(IF('INDEX CALCULATOR'!$E$14=3,1,0)*VAS!H20) -> -0.242 | I22: =VAS!I2+(IF('INDEX CALCULATOR'!$E$6+'INDEX CALCULATOR'!$E$8+'INDEX CALCULATOR'!$E$10+'INDEX CALCULATOR'!$E$12+'INDEX CALCULATOR'!$E$14>5,1,0)*VAS!I4)+(IF('INDEX CALCULATOR'!$E$6=3,1,IF('INDEX CALCULATOR'!$E$8=3,1,IF('INDEX CALCULATOR'!$E$10=3,1,IF('INDEX CALCULATOR'!$E$12=3,1,IF('INDEX CALCULATOR'!$E$14=3,1,0)))))*VAS!I5)+(IF('INDEX CALCULATOR'!$E$6=2,1,0)*VAS!I7)+(IF('INDEX CALCULATOR'!$E$6=3,1,0)*VAS!I8)+(IF('INDEX CALCULATOR'!$E$8=2,1,0)*VAS!I10)+(IF('INDEX CALCULATOR'!$E$8=3,1,0)*VAS!I11)+(IF('INDEX CALCULATOR'!$E$10=2,1,0)*VAS!I13)+(IF('INDEX CALCULATOR'!$E$10=3,1,0)*VAS!I14)+(IF('INDEX CALCULATOR'!$E$12=2,1,0)*VAS!I16)+(IF('INDEX CALCULATOR'!$E$12=3,1,0)*VAS!I17)+(IF('INDEX CALCULATOR'!$E$14=2,1,0)*VAS!I19)+(IF('INDEX CALCULATOR'!$E$14=3,1,0)*VAS!I20) -> -0.0757 | J22: =VAS!J2+(IF('INDEX CALCULATOR'!$E$6+'INDEX CALCULATOR'!$E$8+'INDEX CALCULATOR'!$E$10+'INDEX CALCULATOR'!$E$12+'INDEX CALCULATOR'!$E$14>5,1,0)*VAS!J4)+(IF('INDEX CALCULATOR'!$E$6=3,1,IF('INDEX CALCULATOR'!$E$8=3,1,IF('INDEX CALCULATOR'!$E$10=3,1,IF('INDEX CALCULATOR'!$E$12=3,1,IF('INDEX CALCULATOR'!$E$14=3,1,0)))))*VAS!J5)+(IF('INDEX CALCULATOR'!$E$6=2,1,0)*VAS!J7)+(IF('INDEX CALCULATOR'!$E$6=3,1,0)*VAS!J8)+(IF('INDEX CALCULATOR'!$E$8=2,1,0)*VAS!J10)+(IF('INDEX CALCULATOR'!$E$8=3,1,0)*VAS!J11)+(IF('INDEX CALCULATOR'!$E$10=2,1,0)*VAS!J13)+(IF('INDEX CALCULATOR'!$E$10=3,1,0)*VAS!J14)+(IF('INDEX CALCULATOR'!$E$12=2,1,0)*VAS!J16)+(IF('INDEX CALCULATOR'!$E$12=3,1,0)*VAS!J17)+(IF('INDEX CALCULATOR'!$E$14=2,1,0)*VAS!J19)+(IF('INDEX CALCULATOR'!$E$14=3,1,0)*VAS!J20) -> -0.073 | K22: Not available | L22: Not available | M22: Not available | N22: Not available

Sheet TTO
A1: TTO value sets | B1: Denmark | C1: Germany | D1: Japan | E1: Netherlands | F1: Spain | G1: UK | H1: USA | I1: Zimbabwe | J1: Belgium | K1: Finland | L1: New Zealand | M1: Slovenia | N1: Europe
A2: Full health (11111) | B2: 1 | C2: 1 | D2: 1 | E2: 1 | F2: 1 | G2: 1 | H2: 1 | I2: 1
A4: At least one 2 or 3 (constant) | B4: -0.114 | C4: -0.001 | D4: -0.152 | E4: -0.071 | F4: -0.024 | G4: -0.081 | H4: - | I4: -0.1
A5: At least one 3 (N3) | B5: - | C5: -0.323 | D5: - | E5: -0.234 | F5: -0.291 | G5: -0.269 | H5: - | I5: -
A7: Mobility = 2 | B7: -0.053 | C7: -0.099 | D7: -0.075 | E7: -0.036 | F7: -0.106 | G7: -0.069 | H7: -0.146016 | I7: -0.056
A8: Mobility = 3 | B8: -0.411 | C8: -0.329 | D8: -0.418 | E8: -0.161 | F8: -0.43 | G8: -0.314 | H8: -0.557685 | I8: -0.204
A10: Self care = 2 | B10: -0.063 | C10: -0.087 | D10: -0.054 | E10: -0.082 | F10: -0.134 | G10: -0.104 | H10: -0.1753425 | I10: -0.092
A11: Self care = 3 | B11: -0.192 | C11: -0.174 | D11: -0.102 | E11: -0.152 | F11: -0.309 | G11: -0.214 | H11: -0.4711896 | I11: -0.231
A13: Usual activities = 2 | B13: -0.048 | C13: - | D13: -0.044 | E13: -0.032 | F13: -0.071 | G13: -0.036 | H13: -0.1397295 | I13: -0.043
A14: Usual activities = 3 | B14: -0.144 | C14: - | D14: -0.133 | E14: -0.057 | F14: -0.195 | G14: -0.094 | H14: -0.3742594 | I14: -0.135
A16: Pain/discomfort = 2 | B16: -0.062 | C16: -0.112 | D16: -0.08 | E16: -0.086 | F16: -0.089 | G16: -0.123 | H16: -0.1728907 | I16: -0.067
A17: Pain/discomfort = 3 | B17: -0.396 | C17: -0.315 | D17: -0.194 | E17: -0.329 | F17: -0.261 | G17: -0.386 | H17: -0.5371011 | I17: -0.302
A19: Anxiety/depression = 2 | B19: -0.068 | C19: - | D19: -0.063 | E19: -0.124 | F19: -0.062 | G19: -0.071 | H19: -0.156223 | I19: -0.046
A20: Anxiety/depression = 3 | B20: -0.367 | C20: -0.065 | D20: -0.112 | E20: -0.325 | F20: -0.144 | G20: -0.236 | H20: -0.4501876 | I20: -0.173
A22: D1 | H22: 0.1395949
A23: I2-square | H23: -0.0106868
A24: I3 | H24: 0.1215579
A25: I3-square | H25: 0.0147963
B27: =TTO!B2+(IF('INDEX CALCULATOR'!$E$6+'INDEX CALCULATOR'!$E$8+'INDEX CALCULATOR'!$E$10+'INDEX CALCULATOR'!$E$12+'INDEX CALCULATOR'!$E$14>5,1,0)*TTO!B4)+(IF('INDEX CALCULATOR'!$E$6=2,1,0)*TTO!B7)+(IF('INDEX CALCULATOR'!$E$6=3,1,0)*TTO!B8)+(IF('INDEX CALCULATOR'!$E$8=2,1,0)*TTO!B10)+(IF('INDEX CALCULATOR'!$E$8=3,1,0)*TTO!B11)+(IF('INDEX CALCULATOR'!$E$10=2,1,0)*TTO!B13)+(IF('INDEX CALCULATOR'!$E$10=3,1,0)*TTO!B14)+(IF('INDEX CALCULATOR'!$E$12=2,1,0)*TTO!B16)+(IF('INDEX CALCULATOR'!$E$12=3,1,0)*TTO!B17)+(IF('INDEX CALCULATOR'!$E$14=2,1,0)*TTO!B19)+(IF('INDEX CALCULATOR'!$E$14=3,1,0)*TTO!B20) -> -0.624 | C27: =TTO!C2+(IF('INDEX CALCULATOR'!$E$6+'INDEX CALCULATOR'!$E$8+'INDEX CALCULATOR'!$E$10+'INDEX CALCULATOR'!$E$12+'INDEX CALCULATOR'!$E$14>5,1,0)*TTO!C4)+(IF('INDEX CALCULATOR'!$E$6=3,1,IF('INDEX CALCULATOR'!$E$8=3,1,IF('INDEX CALCULATOR'!$E$10=3,1,IF('INDEX CALCULATOR'!$E$12=3,1,IF('INDEX CALCULATOR'!$E$14=3,1,0)))))*TTO!C5)+(IF('INDEX CALCULATOR'!$E$6=2,1,0)*TTO!C7)+(IF('INDEX CALCULATOR'!$E$6=3,1,0)*TTO!C8)+(IF('INDEX CALCULATOR'!$E$8=2,1,0)*TTO!C10)+(IF('INDEX CALCULATOR'!$E$8=3,1,0)*TTO!C11)+(IF('INDEX CALCULATOR'!$E$12=2,1,0)*TTO!C16)+(IF('INDEX CALCULATOR'!$E$12=3,1,0)*TTO!C17)+(IF('INDEX CALCULATOR'!$E$14=3,1,0)*TTO!C20) -> -0.207 | D27: =TTO!D2+(IF('INDEX CALCULATOR'!$E$6+'INDEX CALCULATOR'!$E$8+'INDEX CALCULATOR'!$E$10+'INDEX CALCULATOR'!$E$12+'INDEX CALCULATOR'!$E$14>5,1,0)*TTO!D4)+(IF('INDEX CALCULATOR'!$E$6=2,1,0)*TTO!D7)+(IF('INDEX CALCULATOR'!$E$6=3,1,0)*TTO!D8)+(IF('INDEX CALCULATOR'!$E$8=2,1,0)*TTO!D10)+(IF('INDEX CALCULATOR'!$E$8=3,1,0)*TTO!D11)+(IF('INDEX CALCULATOR'!$E$10=2,1,0)*TTO!D13)+(IF('INDEX CALCULATOR'!$E$10=3,1,0)*TTO!D14)+(IF('INDEX CALCULATOR'!$E$12=2,1,0)*TTO!D16)+(IF('INDEX CALCULATOR'!$E$12=3,1,0)*TTO!D17)+(IF('INDEX CALCULATOR'!$E$14=2,1,0)*TTO!D19)+(IF('INDEX CALCULATOR'!$E$14=3,1,0)*TTO!D20) -> -0.111 | E27: =TTO!E2+(IF('INDEX CALCULATOR'!$E$6+'INDEX CALCULATOR'!$E$8+'INDEX CALCULATOR'!$E$10+'INDEX CALCULATOR'!$E$12+'INDEX CALCULATOR'!$E$14>5,1,0)*TTO!E4)+(IF('INDEX CALCULATOR'!$E$6=3,1,IF('INDEX CALCULATOR'!$E$8=3,1,IF('INDEX CALCULATOR'!$E$10=3,1,IF('INDEX CALCULATOR'!$E$12=3,1,IF('INDEX CALCULATOR'!$E$14=3,1,0)))))*TTO!E5)+(IF('INDEX CALCULATOR'!$E$6=2,1,0)*TTO!E7)+(IF('INDEX CALCULATOR'!$E$6=3,1,0)*TTO!E8)+(IF('INDEX CALCULATOR'!$E$8=2,1,0)*TTO!E10)+(IF('INDEX CALCULATOR'!$E$8=3,1,0)*TTO!E11)+(IF('INDEX CALCULATOR'!$E$10=2,1,0)*TTO!E13)+(IF('INDEX CALCULATOR'!$E$10=3,1,0)*TTO!E14)+(IF('INDEX CALCULATOR'!$E$12=2,1,0)*TTO!E16)+(IF('INDEX CALCULATOR'!$E$12=3,1,0)*TTO!E17)+(IF('INDEX CALCULATOR'!$E$14=2,1,0)*TTO!E19)+(IF('INDEX CALCULATOR'!$E$14=3,1,0)*TTO!E20) -> -0.329 | F27: =TTO!F2+(IF('INDEX CALCULATOR'!$E$6+'INDEX CALCULATOR'!$E$8+'INDEX CALCULATOR'!$E$10+'INDEX CALCULATOR'!$E$12+'INDEX CALCULATOR'!$E$14>5,1,0)*TTO!F4)+(IF('INDEX CALCULATOR'!$E$6=3,1,IF('INDEX CALCULATOR'!$E$8=3,1,IF('INDEX CALCULATOR'!$E$10=3,1,IF('INDEX CALCULATOR'!$E$12=3,1,IF('INDEX CALCULATOR'!$E$14=3,1,0)))))*TTO!F5)+(IF('INDEX CALCULATOR'!$E$6=2,1,0)*TTO!F7)+(IF('INDEX CALCULATOR'!$E$6=3,1,0)*TTO!F8)+(IF('INDEX CALCULATOR'!$E$8=2,1,0)*TTO!F10)+(IF('INDEX CALCULATOR'!$E$8=3,1,0)*TTO!F11)+(IF('INDEX CALCULATOR'!$E$10=2,1,0)*TTO!F13)+(IF('INDEX CALCULATOR'!$E$10=3,1,0)*TTO!F14)+(IF('INDEX CALCULATOR'!$E$12=2,1,0)*TTO!F16)+(IF('INDEX CALCULATOR'!$E$12=3,1,0)*TTO!F17)+(IF('INDEX CALCULATOR'!$E$14=2,1,0)*TTO!F19)+(IF('INDEX CALCULATOR'!$E$14=3,1,0)*TTO!F20) -> -0.654 | G27: =TTO!G2+(IF('INDEX CALCULATOR'!$E$6+'INDEX CALCULATOR'!$E$8+'INDEX CALCULATOR'!$E$10+'INDEX CALCULATOR'!$E$12+'INDEX CALCULATOR'!$E$14>5,1,0)*TTO!G4)+(IF('INDEX CALCULATOR'!$E$6=3,1,IF('INDEX CALCULATOR'!$E$8=3,1,IF('INDEX CALCULATOR'!$E$10=3,1,IF('INDEX CALCULATOR'!$E$12=3,1,IF('INDEX CALCULATOR'!$E$14=3,1,0)))))*TTO!G5)+(IF('INDEX CALCULATOR'!$E$6=2,1,0)*TTO!G7)+(IF('INDEX CALCULATOR'!$E$6=3,1,0)*TTO!G8)+(IF('INDEX CALCULATOR'!$E$8=2,1,0)*TTO!G10)+(IF('INDEX CALCULATOR'!$E$8=3,1,0)*TTO!G11)+(IF('INDEX CALCULATOR'!$E$10=2,1,0)*TTO!G13)+(IF('INDEX CALCULATOR'!$E$10=3,1,0)*TTO!G14)+(IF('INDEX CALCULATOR'!$E$12=2,1,0)*TTO!G16)+(IF('INDEX CALCULATOR'!$E$12=3,1,0)*TTO!G17)+(IF('INDEX CALCULATOR'!$E$14=2,1,0)*TTO!G19)+(IF('INDEX CALCULATOR'!$E$14=3,1,0)*TTO!G20) -> -0.594 | H27: =TTO!H2+(IF('INDEX CALCULATOR'!$E$6=2,1,0)*TTO!H7)+(IF('INDEX CALCULATOR'!$E$6=3,1,0)*TTO!H8)+(IF('INDEX CALCULATOR'!$E$8=2,1,0)*TTO!H10)+(IF('INDEX CALCULATOR'!$E$8=3,1,0)*TTO!H11)+(IF('INDEX CALCULATOR'!$E$10=2,1,0)*TTO!H13)+(IF('INDEX CALCULATOR'!$E$10=3,1,0)*TTO!H14)+(IF('INDEX CALCULATOR'!$E$12=2,1,0)*TTO!H16)+(IF('INDEX CALCULATOR'!$E$12=3,1,0)*TTO!H17)+(IF('INDEX CALCULATOR'!$E$14=2,1,0)*TTO!H19)+(IF('INDEX CALCULATOR'!$E$14=3,1,0)*TTO!H20)+G29*H22+G45*H23+G36*H24+G43*H25 -> -0.1090707 | I27: =TTO!I2+(IF('INDEX CALCULATOR'!$E$6+'INDEX CALCULATOR'!$E$8+'INDEX CALCULATOR'!$E$10+'INDEX CALCULATOR'!$E$12+'INDEX CALCULATOR'!$E$14>5,1,0)*TTO!I4)+(IF('INDEX CALCULATOR'!$E$6=2,1,0)*TTO!I7)+(IF('INDEX CALCULATOR'!$E$6=3,1,0)*TTO!I8)+(IF('INDEX CALCULATOR'!$E$8=2,1,0)*TTO!I10)+(IF('INDEX CALCULATOR'!$E$8=3,1,0)*TTO!I11)+(IF('INDEX CALCULATOR'!$E$10=2,1,0)*TTO!I13)+(IF('INDEX CALCULATOR'!$E$10=3,1,0)*TTO!I14)+(IF('INDEX CALCULATOR'!$E$12=2,1,0)*TTO!I16)+(IF('INDEX CALCULATOR'!$E$12=3,1,0)*TTO!I17)+(IF('INDEX CALCULATOR'!$E$14=2,1,0)*TTO!I19)+(IF('INDEX CALCULATOR'!$E$14=3,1,0)*TTO!I20) -> -0.145 | J27: Not available | K27: Not available | L27: Not available | M27: Not available | N27: Not available
F29: D1 crieteria | G29: =IF(F30+F31+F32+F33+F34-1>0,F30+F31+F32+F33+F34-1,0) -> 4
F30: =IF('INDEX CALCULATOR'!E6>1,1,0) -> 1
F31: =IF('INDEX CALCULATOR'!E8>1,1,0) -> 1
F32: =IF('INDEX CALCULATOR'!E10>1,1,0) -> 1
F33: =IF('INDEX CALCULATOR'!E12>1,1,0) -> 1
F34: =IF('INDEX CALCULATOR'!E14>1,1,0) -> 1
F36: I3 criteria | G36: =IF(F37+F38+F39+F40+F41-1>0,F37+F38+F39+F40+F41-1,0) -> 4
F37: =IF('INDEX CALCULATOR'!E6=3,1,0) -> 1
F38: =IF('INDEX CALCULATOR'!E8=3,1,0) -> 1
F39: =IF('INDEX CALCULATOR'!E10=3,1,0) -> 1
F40: =IF('INDEX CALCULATOR'!E12=3,1,0) -> 1
F41: =IF('INDEX CALCULATOR'!E14=3,1,0) -> 1
F43: I3 square | G43: =G36*G36 -> 16
F45: I2 square | G45: =F51*F51 -> 0
F46: =IF('INDEX CALCULATOR'!E6=2,1,0) -> 0
F47: =IF('INDEX CALCULATOR'!E8=2,1,0) -> 0
F48: =IF('INDEX CALCULATOR'!E10=2,1,0) -> 0
F49: =IF('INDEX CALCULATOR'!E12=2,1,0) -> 0
F50: =IF('INDEX CALCULATOR'!E14=2,1,0) -> 0
F51: =IF(F46+F47+F48+F49+F50-1>0,F46+F47+F48+F49+F50-1,0) -> 0

Sheet notes
A2: Europe | B2: raw | C2: resc mean dead | D2: resc median dead
A3: Full health (11111) | B3: 97.66 | C3: 1 | D3: 1
A5: At least one 2 or 3 (constant) | B5: -11.21 | C5: =$B5/($B$3-10) -> -0.1278804472 | D5: =$B5/($B$3-2) -> -0.1171858666
A6: At least one 3 (N3) | B6: -20.06 | C6: =$B6/($B$3-10) -> -0.228838695 | D6: =$B6/($B$3-2) -> -0.2097010245
A8: Mobility = 2 | B8: -5.78 | C8: -0.06593657312 | D8: -0.06042232908
A9: Mobility = 3 | B9: -16.03 | C9: -0.1828656172 | D9: -0.1675726531
A11: Self care = 2 | B11: -10.28 | C11: -0.1172712754 | D11: -0.1074639348
A12: Self care = 3 | B12: -13.67 | C12: -0.1559434178 | D12: -0.1429019444
A14: Usual activities = 2 | B14: -2.31 | C14: -0.02635181383 | D14: -0.02414802425
A15: Usual activities = 3 | B15: -7.54 | C15: -0.08601414556 | D15: -0.07882082375
A17: Pain/discomfort = 2 | B17: -8.15 | C17: -0.09297284965 | D17: -0.08519757474
A18: Pain/discomfort = 3 | B18: -14.35 | C18: -0.1637006616 | D18: -0.1500104537
A20: Anxiety/depression = 2 | B20: -7.81 | C20: -0.0890942277 | D20: -0.08164332009
A21: Anxiety/depression = 3 | B21: -11.31 | C21: -0.1290212183 | D21: -0.1182312356
A24: Germany (1998)
A25: in the model when a dimension is at level 3, you have to multiply by both level 2 and level 3. The adjusted level 3 values have incorporated this.
A26: dimension | B26: level 1 | C26: level 2 | D26: level 3 | E26: adjusted level 3
A27: MO | B27: 1 | C27: 0.9447 | D27: 0.4157 | E27: =C27*D27 -> 0.39271179
A28: SC | B28: 1 | C28: 0.808 | D28: 0.5819 | E28: =C28*D28 -> 0.4701752
A29: UA | B29: 1 | C29: 0.8803 | D29: 0.6291 | E29: =C29*D29 -> 0.55379673
A30: PD | B30: 1 | C30: 0.9745 | D30: 0.4793 | E30: =C30*D30 -> 0.46707785
A31: AD | B31: 1 | C31: 0.8174 | D31: 0.5728 | E31: =C31*D31 -> 0.46820672

Sheet Charts
B2: Figure 2: Value of selected EQ-5D health states based on TTO surveys
C4: Denmark | D4: Germany | E4: Japan | F4: Netherlands | G4: Spain | H4: UK | I4: USA | J4: Zimbabwe
B5: 11111 | C5: 1 | D5: 1 | E5: 1 | F5: 1 | G5: 1 | H5: 1 | I5: 1 | J5: 1
B6: 21111 | C6: 0.833 | D6: 0.9 | E6: 0.773 | F6: 0.893 | G6: 0.87 | H6: 0.85 | I6: 0.853984 | J6: 0.844
B7: 12111 | C7: 0.823 | D7: 0.912 | E7: 0.794 | F7: 0.847 | G7: 0.842 | H7: 0.815 | I7: 0.8246575 | J7: 0.808
B8: 11211 | C8: 0.838 | D8: 0.999 | E8: 0.804 | F8: 0.897 | G8: 0.905 | H8: 0.883 | I8: 0.8602705 | J8: 0.857
B9: 11121 | C9: 0.824 | D9: 0.887 | E9: 0.768 | F9: 0.843 | G9: 0.887 | H9: 0.796 | I9: 0.8271093 | J9: 0.833
B10: 11112 | C10: 0.818 | D10: 0.999 | E10: 0.785 | F10: 0.805 | G10: 0.914 | H10: 0.848 | I10: 0.843777 | J10: 0.854
B11: 11122 | C11: 0.756 | D11: 0.887 | E11: 0.705 | F11: 0.719 | G11: 0.825 | H11: 0.725 | I11: 0.7997944 | J11: 0.787
B12: 21232 | C12: 0.321 | D12: 0.262 | E12: 0.472 | F12: 0.174 | G12: 0.185 | H12: 0.088 | I12: 0.3969679 | J12: 0.453
B13: 32211 | C13: 0.364 | D13: 0.26 | E13: 0.332 | F13: 0.42 | G13: 0.05 | H13: 0.196 | I13: 0.395746 | J13: 0.561
B14: 22323 | C14: 0.197 | D14: 0.313 | E14: 0.394 | F14: 0.109 | G14: 0.017 | H14: 0.024 | I14: 0.3332904 | J14: 0.377
B15: 22233 | C15: -0.041 | D15: 0.11 | E15: 0.369 | F15: -0.109 | G15: -0.031 | H15: -0.181 | I15: 0.2036099 | J15: 0.234
B16: 33321 | C16: 0.077 | D16: 0.061 | E16: 0.115 | F16: 0.239 | G16: -0.338 | H16: -0.095 | I16: 0.145061 | J16: 0.263
B17: 33333 | C17: -0.624 | D17: -0.207 | E17: -0.111 | F17: -0.329 | G17: -0.654 | H17: -0.594 | I17: -0.1090707 | J17: -0.145
B40: Figure 3: Value of selected EQ-5D health states based on VAS surveys
C42: Belgium | D42: Denmark | E42: Finland | F42: New Zealand | G42: Slovenia | H42: Spain | I42: UK | J42: Europe
B43: 11111 | C43: 1 | D43: 1 | E43: 1 | F43: 1 | G43: 1 | H43: 1 | I43: 1 | J43: 1
B44: 21111 | C44: 0.774 | D44: 0.649 | E44: 0.784 | F44: 0.7206 | G44: 0.666 | H44: 0.7601 | I44: 0.774 | J44: 0.8062
B45: 12111 | C45: 0.765 | D45: 0.663 | E45: 0.744 | F45: 0.7245 | G45: 0.779 | H45: 0.7486 | I45: 0.752 | J45: 0.7548
B46: 11211 | C46: 0.817 | D46: 0.711 | E46: 0.795 | F46: 0.7823 | G46: 0.818 | H46: 0.7947 | I46: 0.814 | J46: 0.8457
B47: 11121 | C47: 0.764 | D47: 0.697 | E47: 0.731 | F47: 0.7161 | G47: 0.761 | H47: 0.7902 | I47: 0.761 | J47: 0.7791
B48: 11112 | C48: 0.745 | D48: 0.684 | E48: 0.682 | F48: 0.7039 | G48: 0.779 | H48: 0.7986 | I48: 0.782 | J48: 0.783
B49: 11122 | C49: 0.661 | D49: 0.606 | E49: 0.571 | F49: 0.6241 | G49: 0.668 | H49: 0.739 | I49: 0.698 | J49: 0.69
B50: 21232 | C50: 0.216 | D50: 0.338 | E50: 0.424 | F50: 0.2389 | G50: 0.297 | H50: 0.3227 | I50: 0.294 | J50: 0.2982
B51: 32211 | C51: 0.33 | D51: 0.347 | E51: 0.467 | F51: 0.3438 | G51: 0.313 | H51: 0.3022 | I51: 0.324 | J51: 0.3167
B52: 22323 | C52: 0.083 | D52: 0.149 | E52: 0.248 | F52: 0.1417 | G52: 0.168 | H52: 0.1748 | I52: 0.177 | J52: 0.1521
B53: 22233 | C53: 0.03 | D53: 0.135 | E53: 0.29 | F53: 0.0755 | G53: 0.111 | H53: 0.1703 | I53: 0.14 | J53: 0.141
B54: 33321 | C54: 0.132 | D54: 0.093 | E54: 0.227 | F54: 0.179 | G54: 0.055 | H54: 0.0863 | I54: 0.138 | J54: 0.1255
B55: 33333 | C55: -0.158 | D55: -0.167 | E55: -0.011 | F55: -0.0848 | G55: -0.242 | H55: -0.0757 | I55: -0.073 | J55: -0.0742
B79: Figure 4: Value of selected EQ-5D health states based on TTO and VAS surveys
C81: Denmark-TTO | D81: Denmark-VAS | E81: Spain-TTO | F81: Spain-VAS | G81: UK-TTO | H81: UK-VAS
B82: 11111 | C82: 1 | D82: 1 | E82: 1 | F82: 1 | G82: 1 | H82: 1
B83: 21111 | C83: 0.833 | D83: 0.649 | E83: 0.87 | F83: 0.7601 | G83: 0.85 | H83: 0.774
B84: 12111 | C84: 0.823 | D84: 0.663 | E84: 0.842 | F84: 0.7486 | G84: 0.815 | H84: 0.752
B85: 11211 | C85: 0.838 | D85: 0.711 | E85: 0.905 | F85: 0.7947 | G85: 0.883 | H85: 0.814
B86: 11121 | C86: 0.824 | D86: 0.697 | E86: 0.887 | F86: 0.7902 | G86: 0.796 | H86: 0.761
B87: 11112 | C87: 0.818 | D87: 0.684 | E87: 0.914 | F87: 0.7986 | G87: 0.848 | H87: 0.782
B88: 11122 | C88: 0.756 | D88: 0.606 | E88: 0.825 | F88: 0.739 | G88: 0.725 | H88: 0.698
B89: 21232 | C89: 0.321 | D89: 0.338 | E89: 0.185 | F89: 0.3227 | G89: 0.088 | H89: 0.294
B90: 32211 | C90: 0.364 | D90: 0.347 | E90: 0.05 | F90: 0.3022 | G90: 0.196 | H90: 0.324
B91: 22323 | C91: 0.197 | D91: 0.149 | E91: 0.017 | F91: 0.1748 | G91: 0.024 | H91: 0.177
B92: 22233 | C92: -0.041 | D92: 0.135 | E92: -0.031 | F92: 0.1703 | G92: -0.181 | H92: 0.14
B93: 33321 | C93: 0.077 | D93: 0.093 | E93: -0.338 | F93: 0.0863 | G93: -0.095 | H93: 0.138
B94: 33333 | C94: -0.624 | D94: -0.167 | E94: -0.654 | F94: -0.0757 | G94: -0.594 | H94: -0.073
